[Event "Live Chess"]
[Site "Chess.com"]
[Date "2023.05.21"]
[Round "-"]
[White "NotHarryV"]
[Black "raminguy"]
[Result "0-1"]
[WhiteElo "1515"]
[BlackElo "1959"]
[TimeControl "300"]
[EndTime "7:19:46 PDT"]
[Termination "raminguy won on time"]

1. d4 {[%clk 0:04:59.8]} 1... d5 {[%clk 0:04:58.7]} 2. c4 {[%clk 0:04:58.3]}
2... e6 {[%clk 0:04:58.3]} 3. Nf3 {[%clk 0:04:55.8]} 3... a6 {[%clk 0:04:57.8]}
4. a4 {[%clk 0:04:52.7]} 4... Nc6 {[%clk 0:04:56.1]} 5. g3 {[%clk 0:04:49]} 5...
dxc4 {[%clk 0:04:53.9]} 6. Bg2 {[%clk 0:04:45.4]} 6... Na5 {[%clk 0:04:51.7]} 7.
O-O {[%clk 0:04:41.9]} 7... Nf6 {[%clk 0:04:49.9]} 8. Bg5 {[%clk 0:04:24.3]}
8... Be7 {[%clk 0:04:46.3]} 9. Qc2 {[%clk 0:04:19.8]} 9... O-O {[%clk
0:04:43.4]} 10. e4 {[%clk 0:04:09.3]} 10... c6 {[%clk 0:04:33.4]} 11. Bxf6
{[%clk 0:03:56.9]} 11... Bxf6 {[%clk 0:04:31.3]} 12. e5 {[%clk 0:03:56.6]} 12...
Be7 {[%clk 0:04:26.9]} 13. h4 {[%clk 0:03:55.2]} 13... Rb8 {[%clk 0:04:21.7]}
14. Nc3 {[%clk 0:03:32.6]} 14... b5 {[%clk 0:04:14.3]} 15. axb5 {[%clk
0:03:30.1]} 15... axb5 {[%clk 0:04:14.2]} 16. Ng5 {[%clk 0:03:20.4]} 16... Bxg5
{[%clk 0:03:57.7]} 17. hxg5 {[%clk 0:03:20.3]} 17... Nb3 {[%clk 0:03:56.1]} 18.
Rad1 {[%clk 0:03:00.6]} 18... Bb7 {[%clk 0:03:53.6]} 19. Ne2 {[%clk 0:02:38.9]}
19... Qxg5 {[%clk 0:03:48.9]} 20. f4 {[%clk 0:02:31.2]} 20... Qe7 {[%clk
0:03:40]} 21. f5 {[%clk 0:02:23.1]} 21... exf5 {[%clk 0:03:38.1]} 22. Qxf5
{[%clk 0:02:14.6]} 22... c5 {[%clk 0:03:37]} 23. Bxb7 {[%clk 0:02:12.1]} 23...
Rxb7 {[%clk 0:03:34.8]} 24. d5 {[%clk 0:02:09.5]} 24... Rb6 {[%clk 0:03:13.6]}
25. d6 {[%clk 0:02:05.9]} 25... Qd8 {[%clk 0:03:04.3]} 26. e6 {[%clk 0:01:59.6]}
26... fxe6 {[%clk 0:03:00.7]} 27. Qxe6+ {[%clk 0:01:58]} 27... Kh8 {[%clk
0:02:58.9]} 28. Rxf8+ {[%clk 0:01:51.6]} 28... Qxf8 {[%clk 0:02:56.7]} 29. Qe7
{[%clk 0:01:41.3]} 29... Rb8 {[%clk 0:02:41.4]} 30. Qxf8+ {[%clk 0:01:27.2]}
30... Rxf8 {[%clk 0:02:39.7]} 31. d7 {[%clk 0:01:25.3]} 31... Rd8 {[%clk
0:02:38.7]} 32. Nf4 {[%clk 0:01:24.4]} 32... Kg8 {[%clk 0:02:36.3]} 33. Ne6
{[%clk 0:01:23.8]} 33... Rxd7 {[%clk 0:02:27.7]} 34. Rxd7 {[%clk 0:01:21.3]}
34... b4 {[%clk 0:02:21.7]} 35. Rxg7+ {[%clk 0:01:11.2]} 35... Kh8 {[%clk
0:02:19.6]} 36. Rg4 {[%clk 0:00:57.6]} 36... Nd2 {[%clk 0:01:58.6]} 37. Nxc5
{[%clk 0:00:50.3]} 37... c3 {[%clk 0:01:57.1]} 38. bxc3 {[%clk 0:00:47.2]} 38...
bxc3 {[%clk 0:01:55.5]} 39. Nd3 {[%clk 0:00:42.9]} 39... c2 {[%clk 0:01:52.3]}
40. Ra4 {[%clk 0:00:37.6]} 40... Nb3 {[%clk 0:01:46.6]} 41. Ra3 {[%clk
0:00:28.7]} 41... c1=Q+ {[%clk 0:01:44]} 42. Nxc1 {[%clk 0:00:27.4]} 42... Nxc1
{[%clk 0:01:43.5]} 43. Kf2 {[%clk 0:00:23.9]} 43... Kg7 {[%clk 0:01:40.2]} 44.
Rc3 {[%clk 0:00:22]} 44... Na2 {[%clk 0:01:38.1]} 45. Rf3 {[%clk 0:00:19.9]}
45... Nb4 {[%clk 0:01:36]} 46. Kg2 {[%clk 0:00:19.4]} 46... Nc2 {[%clk
0:01:34.7]} 47. Kh3 {[%clk 0:00:18.4]} 47... Ne1 {[%clk 0:01:33.2]} 48. Re3
{[%clk 0:00:17.4]} 48... Nc2 {[%clk 0:01:30.2]} 49. Re5 {[%clk 0:00:14.8]} 49...
Nd4 {[%clk 0:01:28.2]} 50. Rg5+ {[%clk 0:00:12.2]} 50... Kh6 {[%clk 0:01:22.8]}
51. Kg4 {[%clk 0:00:12.1]} 51... Ne6 {[%clk 0:01:15.2]} 52. Rh5+ {[%clk
0:00:10.3]} 52... Kg6 {[%clk 0:01:14.2]} 53. Ra5 {[%clk 0:00:08.9]} 53... Nd4
{[%clk 0:01:11.4]} 54. Ra6+ {[%clk 0:00:07.3]} 54... Kg7 {[%clk 0:01:10.5]} 55.
Kg5 {[%clk 0:00:05.9]} 55... Nf3+ {[%clk 0:01:09.3]} 56. Kf4 {[%clk 0:00:04.6]}
56... Nd2 {[%clk 0:01:08.1]} 57. g4 {[%clk 0:00:03.6]} 57... Nc4 {[%clk
0:01:06.5]} 58. Kg5 {[%clk 0:00:02.3]} 58... Ne5 {[%clk 0:01:04.7]} 59. Ra7+
{[%clk 0:00:01.1]} 59... Kg8 {[%clk 0:01:03.4]} 0-1

[Event "Live Chess"]
[Site "Chess.com"]
[Date "2023.05.21"]
[Round "-"]
[White "Biranidun"]
[Black "JoRoSaR"]
[Result "1-0"]
[WhiteElo "2518"]
[BlackElo "1674"]
[TimeControl "300"]
[EndTime "7:20:10 PDT"]
[Termination "Biranidun won by resignation"]

1. e4 {[%clk 0:04:59.4]} 1... c5 {[%clk 0:04:58.3]} 2. Nf3 {[%clk 0:04:58.3]}
2... Nc6 {[%clk 0:04:57.6]} 3. d4 {[%clk 0:04:57.7]} 3... cxd4 {[%clk
0:04:57.5]} 4. Nxd4 {[%clk 0:04:57.6]} 4... e5 {[%clk 0:04:56.3]} 5. Nb5 {[%clk
0:04:56.6]} 5... d6 {[%clk 0:04:55.5]} 6. N1c3 {[%clk 0:04:56.3]} 6... a6 {[%clk
0:04:54.2]} 7. Na3 {[%clk 0:04:56]} 7... b5 {[%clk 0:04:54]} 8. Nd5 {[%clk
0:04:55.1]} 8... Nce7 {[%clk 0:04:53.8]} 9. c4 {[%clk 0:04:54.6]} 9... Nxd5
{[%clk 0:04:53]} 10. exd5 {[%clk 0:04:54.5]} 10... b4 {[%clk 0:04:51.3]} 11.
Qa4+ {[%clk 0:04:53]} 11... Bd7 {[%clk 0:04:48.6]} 12. Qxb4 {[%clk 0:04:52.6]}
12... Rb8 {[%clk 0:04:48.2]} 13. Qc3 {[%clk 0:04:51.5]} 13... f5 {[%clk
0:04:46.5]} 14. Be2 {[%clk 0:04:50.6]} 14... Nf6 {[%clk 0:04:45.9]} 15. O-O
{[%clk 0:04:49.6]} 15... Be7 {[%clk 0:04:45.2]} 16. Nc2 {[%clk 0:04:43]} 16...
O-O {[%clk 0:04:44.2]} 17. b4 {[%clk 0:04:36.7]} 17... Ne4 {[%clk 0:04:42.1]}
18. Qe1 {[%clk 0:04:34.9]} 18... Qc7 {[%clk 0:04:40.8]} 19. f3 {[%clk
0:04:31.4]} 19... Nf6 {[%clk 0:04:39]} 20. Qd1 {[%clk 0:04:19.1]} 20... e4
{[%clk 0:04:38.3]} 21. f4 {[%clk 0:04:16.2]} 21... Rfc8 {[%clk 0:04:35.9]} 22.
Be3 {[%clk 0:04:14.6]} 22... Ne8 {[%clk 0:04:30.7]} 23. a3 {[%clk 0:04:11.4]}
23... Bf6 {[%clk 0:04:29.6]} 24. Nd4 {[%clk 0:04:10.7]} 24... Qd8 {[%clk
0:04:24.1]} 25. Rc1 {[%clk 0:04:07.2]} 25... Nc7 {[%clk 0:04:21.6]} 26. c5
{[%clk 0:03:54.2]} 26... Nxd5 {[%clk 0:04:20.3]} 27. Bc4 {[%clk 0:03:52.9]}
27... Be6 {[%clk 0:04:16.4]} 28. Nxe6 {[%clk 0:03:51.7]} 28... Nxe3 {[%clk
0:04:14.2]} 29. Nxd8+ {[%clk 0:03:50.9]} 1-0

[Event "Live Chess"]
[Site "Chess.com"]
[Date "2023.05.21"]
[Round "-"]
[White "Delacorta"]
[Black "PaulyD81"]
[Result "1-0"]
[WhiteElo "1377"]
[BlackElo "1190"]
[TimeControl "300"]
[EndTime "7:20:11 PDT"]
[Termination "Delacorta won on time"]

1. d4 {[%clk 0:04:59.2]} 1... Nf6 {[%clk 0:04:53.2]} 2. Nf3 {[%clk 0:04:57.8]}
2... e6 {[%clk 0:04:52.5]} 3. e3 {[%clk 0:04:57.2]} 3... Bb4+ {[%clk 0:04:50.8]}
4. Nbd2 {[%clk 0:04:53]} 4... d5 {[%clk 0:04:48.4]} 5. Bd3 {[%clk 0:04:51.9]}
5... Nc6 {[%clk 0:04:34.9]} 6. O-O {[%clk 0:04:50.4]} 6... O-O {[%clk
0:04:33.5]} 7. b3 {[%clk 0:04:49.4]} 7... b6 {[%clk 0:04:06.6]} 8. Bb2 {[%clk
0:04:45.1]} 8... Bb7 {[%clk 0:04:00]} 9. Ne5 {[%clk 0:04:42.1]} 9... Re8 {[%clk
0:03:39.6]} 10. f4 {[%clk 0:04:40]} 10... a5 {[%clk 0:02:33.7]} 11. g4 {[%clk
0:04:32.3]} 11... g6 {[%clk 0:02:22.3]} 12. Ndf3 {[%clk 0:03:37.4]} 12... h5
{[%clk 0:02:15.4]} 13. gxh5 {[%clk 0:03:35.5]} 13... Nxh5 {[%clk 0:02:08.6]} 14.
Ng5 {[%clk 0:03:13.5]} 14... f6 {[%clk 0:01:46.7]} 15. Nxc6 {[%clk 0:02:56.5]}
15... Bxc6 {[%clk 0:01:39.9]} 16. Bxg6 {[%clk 0:02:37]} 16... fxg5 {[%clk
0:00:55.1]} 17. Qxh5 {[%clk 0:02:17.7]} 17... Qf6 {[%clk 0:00:20.2]} 18. fxg5
{[%clk 0:02:02.8]} 18... Qg7 {[%clk 0:00:14.4]} 19. Bxe8 {[%clk 0:01:43.7]}
19... Bxe8 {[%clk 0:00:12]} 20. Qh6 {[%clk 0:01:39.9]} 20... Qxh6 {[%clk
0:00:08]} 21. gxh6 {[%clk 0:01:39.2]} 21... Kh7 {[%clk 0:00:06.4]} 22. Rf8
{[%clk 0:01:33.3]} 22... Rd8 {[%clk 0:00:03.4]} 23. Raf1 {[%clk 0:01:30.8]}
23... Bxf8 {[%clk 0:00:02.9]} 24. Rxf8 {[%clk 0:01:28.8]} 1-0

[Event "Live Chess"]
[Site "Chess.com"]
[Date "2023.05.21"]
[Round "-"]
[White "ms_lilley"]
[Black "manthanit"]
[Result "0-1"]
[WhiteElo "603"]
[BlackElo "1097"]
[TimeControl "300"]
[EndTime "7:20:21 PDT"]
[Termination "manthanit won - game abandoned"]

1. d4 {[%clk 0:04:56]} 1... e6 {[%clk 0:04:59.2]} 2. d5 {[%clk 0:04:53.5]} 2...
exd5 {[%clk 0:04:57.6]} 3. Qxd5 {[%clk 0:04:51.8]} 3... Nf6 {[%clk 0:04:57]} 4.
Qd1 {[%clk 0:04:50.2]} 4... h6 {[%clk 0:04:54]} 5. Nc3 {[%clk 0:04:48.9]} 5...
Nc6 {[%clk 0:04:52]} 6. a3 {[%clk 0:04:47]} 6... Bc5 {[%clk 0:04:50.7]} 7. e4
{[%clk 0:04:38.2]} 7... d6 {[%clk 0:04:48]} 8. Bd3 {[%clk 0:04:35.8]} 8... Ng4
{[%clk 0:04:41.1]} 9. h3 {[%clk 0:04:29.5]} 9... Nxf2 {[%clk 0:04:39.2]} 10. Qh5
{[%clk 0:04:03.3]} 10... Nxh1 {[%clk 0:04:33.6]} 11. Bc4 {[%clk 0:03:43.5]}
11... O-O {[%clk 0:04:31.8]} 12. Bxh6 {[%clk 0:03:22.4]} 12... gxh6 {[%clk
0:04:22.4]} 13. Qxh6 {[%clk 0:03:01.7]} 13... Ne5 {[%clk 0:04:06]} 14. Kd2
{[%clk 0:02:53.7]} 14... Ng3 {[%clk 0:03:51.7]} 15. Nf3 {[%clk 0:02:46.8]} 15...
Nxf3+ {[%clk 0:03:18.6]} 0-1

[Event "Live Chess"]
[Site "Chess.com"]
[Date "2023.05.21"]
[Round "-"]
[White "robotking06"]
[Black "RichardABates"]
[Result "0-1"]
[WhiteElo "308"]
[BlackElo "2144"]
[TimeControl "300"]
[EndTime "7:20:26 PDT"]
[Termination "RichardABates won by resignation"]

1. d4 {[%clk 0:04:58.6]} 1... Nf6 {[%clk 0:04:58.5]} 2. Nf3 {[%clk 0:04:54.6]}
2... g6 {[%clk 0:04:53.6]} 3. Qd3 {[%clk 0:04:36]} 3... d5 {[%clk 0:04:50.6]} 4.
Qb5+ {[%clk 0:04:33.5]} 4... c6 {[%clk 0:04:48.7]} 5. Qa4 {[%clk 0:04:28.8]}
5... Bg7 {[%clk 0:04:46.6]} 6. Ne5 {[%clk 0:04:18.7]} 6... O-O {[%clk
0:04:44.8]} 7. e3 {[%clk 0:04:05]} 7... a5 {[%clk 0:04:40.7]} 8. Nc3 {[%clk
0:03:56.9]} 8... b5 {[%clk 0:04:38.3]} 9. Qb3 {[%clk 0:03:52]} 9... a4 {[%clk
0:04:37.2]} 10. Qb4 {[%clk 0:03:50]} 10... Na6 {[%clk 0:04:33.3]} 11. Nxc6
{[%clk 0:03:42.4]} 11... Nxb4 {[%clk 0:04:31.6]} 12. Nxd8 {[%clk 0:03:41.2]}
12... Nxc2+ {[%clk 0:04:28.6]} 13. Kd1 {[%clk 0:03:37.9]} 13... Nxa1 {[%clk
0:04:27.3]} 14. Nxf7 {[%clk 0:03:36]} 14... Rxf7 {[%clk 0:04:24.6]} 15. Bd2
{[%clk 0:03:32.2]} 15... b4 {[%clk 0:04:21.5]} 0-1

[Event "Live Chess"]
[Site "Chess.com"]
[Date "2023.05.21"]
[Round "-"]
[White "nigelst"]
[Black "lord_cll"]
[Result "1-0"]
[WhiteElo "1702"]
[BlackElo "1208"]
[TimeControl "300"]
[EndTime "7:20:29 PDT"]
[Termination "nigelst won on time"]

1. e4 {[%clk 0:04:59.2]} 1... d5 {[%clk 0:04:58.7]} 2. exd5 {[%clk 0:04:57.3]}
2... Qxd5 {[%clk 0:04:58.6]} 3. Nc3 {[%clk 0:04:56.3]} 3... Qa5 {[%clk 0:04:58]}
4. d4 {[%clk 0:04:55.1]} 4... Nf6 {[%clk 0:04:57.1]} 5. Nf3 {[%clk 0:04:53.9]}
5... Bf5 {[%clk 0:04:56.4]} 6. Bc4 {[%clk 0:04:51.5]} 6... e6 {[%clk 0:04:55.2]}
7. O-O {[%clk 0:04:50.1]} 7... c6 {[%clk 0:04:45.9]} 8. Bb3 {[%clk 0:04:47.4]}
8... Nbd7 {[%clk 0:04:39]} 9. Bd2 {[%clk 0:04:46]} 9... Qc7 {[%clk 0:04:37]} 10.
Qc1 {[%clk 0:04:42.5]} 10... Bd6 {[%clk 0:04:33.6]} 11. Bg5 {[%clk 0:04:38.8]}
11... h6 {[%clk 0:04:30.2]} 12. Bh4 {[%clk 0:04:37.4]} 12... g5 {[%clk
0:04:21.5]} 13. Bg3 {[%clk 0:04:35.8]} 13... Bxg3 {[%clk 0:03:57.1]} 14. hxg3
{[%clk 0:04:33.9]} 14... O-O-O {[%clk 0:03:53.2]} 15. a4 {[%clk 0:04:22.8]}
15... Nb6 {[%clk 0:03:47.9]} 16. a5 {[%clk 0:04:20.7]} 16... Nbd5 {[%clk
0:03:45.7]} 17. Ne5 {[%clk 0:04:11.4]} 17... h5 {[%clk 0:03:27]} 18. Qxg5 {[%clk
0:04:05.3]} 18... Rhg8 {[%clk 0:03:14.5]} 19. Qd2 {[%clk 0:04:00.2]} 19... Ne4
{[%clk 0:03:01]} 20. Nxe4 {[%clk 0:03:53]} 20... Bxe4 {[%clk 0:02:59.8]} 21. Qe2
{[%clk 0:03:33.6]} 21... Bf5 {[%clk 0:02:30.6]} 22. c4 {[%clk 0:03:23.2]} 22...
Nb4 {[%clk 0:02:21]} 23. Qd2 {[%clk 0:03:18.6]} 23... Na6 {[%clk 0:01:53.9]} 24.
Rfd1 {[%clk 0:02:52.6]} 24... c5 {[%clk 0:01:41]} 25. Qe3 {[%clk 0:02:05.9]}
25... cxd4 {[%clk 0:01:27.7]} 26. Rxd4 {[%clk 0:02:01.3]} 26... Nc5 {[%clk
0:01:15.6]} 27. Rxd8+ {[%clk 0:01:53.4]} 27... Rxd8 {[%clk 0:01:02.7]} 28. f4
{[%clk 0:01:37.9]} 28... Nxb3 {[%clk 0:00:50.8]} 29. Qxb3 {[%clk 0:01:35.8]}
29... Qc5+ {[%clk 0:00:47.5]} 30. Kh2 {[%clk 0:01:30.1]} 30... Qe7 {[%clk
0:00:30.9]} 31. a6 {[%clk 0:01:21.7]} 31... h4 {[%clk 0:00:14.5]} 32. Qxb7+
{[%clk 0:00:52.9]} 32... Qxb7 {[%clk 0:00:11.4]} 33. axb7+ {[%clk 0:00:51.6]}
33... Kxb7 {[%clk 0:00:10.3]} 34. Nxf7 {[%clk 0:00:46.9]} 34... hxg3+ {[%clk
0:00:07.9]} 35. Kxg3 {[%clk 0:00:44.9]} 35... Rg8+ {[%clk 0:00:05.7]} 36. Kf2
{[%clk 0:00:40.2]} 36... Rg7 {[%clk 0:00:04.5]} 37. Nd6+ {[%clk 0:00:37.9]}
37... Kc6 {[%clk 0:00:02.9]} 38. Nxf5 {[%clk 0:00:36.3]} 38... exf5 {[%clk
0:00:01.8]} 39. Ra6+ {[%clk 0:00:29]} 39... Kc5 {[%clk 0:00:01.2]} 40. Rf6
{[%clk 0:00:27.1]} 1-0

[Event "Live Chess"]
[Site "Chess.com"]
[Date "2023.05.21"]
[Round "-"]
[White "TheSmoulderingMaster"]
[Black "Ferrarifan27"]
[Result "0-1"]
[WhiteElo "1656"]
[BlackElo "2056"]
[TimeControl "300"]
[EndTime "7:20:38 PDT"]
[Termination "Ferrarifan27 won by resignation"]

1. e4 {[%clk 0:04:58.6]} 1... e5 {[%clk 0:04:58.7]} 2. Nf3 {[%clk 0:04:57.3]}
2... Nc6 {[%clk 0:04:57.3]} 3. Bb5 {[%clk 0:04:56.2]} 3... a6 {[%clk 0:04:54.4]}
4. Ba4 {[%clk 0:04:54.7]} 4... Nf6 {[%clk 0:04:52.6]} 5. O-O {[%clk 0:04:53.8]}
5... Be7 {[%clk 0:04:50.9]} 6. d4 {[%clk 0:04:52.2]} 6... Nxd4 {[%clk
0:04:48.4]} 7. Nxd4 {[%clk 0:04:50.6]} 7... exd4 {[%clk 0:04:47.2]} 8. e5 {[%clk
0:04:50.2]} 8... Nd5 {[%clk 0:04:45]} 9. Qg4 {[%clk 0:04:45]} 9... g6 {[%clk
0:04:29.8]} 10. Bh6 {[%clk 0:04:41.5]} 10... Nb6 {[%clk 0:04:27.6]} 11. Bb3
{[%clk 0:04:39.2]} 11... d6 {[%clk 0:04:19]} 12. Qf3 {[%clk 0:04:36.8]} 12...
Be6 {[%clk 0:04:10.4]} 13. Bxe6 {[%clk 0:04:35]} 13... fxe6 {[%clk 0:04:10.3]}
14. exd6 {[%clk 0:04:34.6]} 14... Bxd6 {[%clk 0:04:05.9]} 15. Qxb7 {[%clk
0:04:32.2]} 15... Qh4 {[%clk 0:03:56.4]} 16. Qc6+ {[%clk 0:04:21.5]} 16... Ke7
{[%clk 0:03:54.5]} 17. g3 {[%clk 0:04:05.6]} 17... Qxh6 {[%clk 0:03:52.6]} 18.
Na3 {[%clk 0:04:03.5]} 18... Rhf8 {[%clk 0:03:43.2]} 19. Qe4 {[%clk 0:03:55.8]}
19... Qg7 {[%clk 0:03:27]} 20. Rae1 {[%clk 0:03:49.4]} 20... Qf6 {[%clk
0:03:23.4]} 21. Nb1 {[%clk 0:03:39.3]} 21... Rad8 {[%clk 0:03:20]} 22. Nd2
{[%clk 0:03:38]} 22... Bb4 {[%clk 0:03:14.4]} 23. c3 {[%clk 0:03:28]} 23... dxc3
{[%clk 0:03:10.7]} 24. bxc3 {[%clk 0:03:27.3]} 24... Bxc3 {[%clk 0:03:09.3]} 0-1

[Event "Live Chess"]
[Site "Chess.com"]
[Date "2023.05.21"]
[Round "-"]
[White "KeithArkell"]
[Black "LiamClery2020"]
[Result "1-0"]
[WhiteElo "2477"]
[BlackElo "1973"]
[TimeControl "300"]
[EndTime "7:20:38 PDT"]
[Termination "KeithArkell won by checkmate"]

1. d4 {[%clk 0:04:57.1]} 1... Nf6 {[%clk 0:04:58.4]} 2. Nf3 {[%clk 0:04:56.4]}
2... e6 {[%clk 0:04:55.4]} 3. c4 {[%clk 0:04:55.5]} 3... d5 {[%clk 0:04:54.7]}
4. cxd5 {[%clk 0:04:54.4]} 4... exd5 {[%clk 0:04:54.6]} 5. Nc3 {[%clk
0:04:53.6]} 5... c6 {[%clk 0:04:53.1]} 6. Qc2 {[%clk 0:04:52.3]} 6... Bd6 {[%clk
0:04:52.4]} 7. Bg5 {[%clk 0:04:51.1]} 7... O-O {[%clk 0:04:51.6]} 8. e3 {[%clk
0:04:50]} 8... Nbd7 {[%clk 0:04:48.5]} 9. Bd3 {[%clk 0:04:48.7]} 9... h6 {[%clk
0:04:47.3]} 10. Bh4 {[%clk 0:04:47.6]} 10... Re8 {[%clk 0:04:42.3]} 11. O-O
{[%clk 0:04:44.5]} 11... Qc7 {[%clk 0:04:41]} 12. Rac1 {[%clk 0:04:38.8]} 12...
a6 {[%clk 0:04:35.8]} 13. Bg3 {[%clk 0:04:36.2]} 13... Bxg3 {[%clk 0:04:34.7]}
14. hxg3 {[%clk 0:04:35.2]} 14... Qd6 {[%clk 0:04:27.3]} 15. a3 {[%clk
0:04:33.7]} 15... Nf8 {[%clk 0:04:19.3]} 16. Na4 {[%clk 0:04:29.3]} 16... Ne4
{[%clk 0:04:15.1]} 17. Nb6 {[%clk 0:04:25.7]} 17... Rb8 {[%clk 0:04:13.7]} 18.
Nxc8 {[%clk 0:04:24.8]} 18... Rbxc8 {[%clk 0:04:12.3]} 19. Bxe4 {[%clk
0:04:21.7]} 19... Rxe4 {[%clk 0:04:11.5]} 20. b4 {[%clk 0:04:16.8]} 20... Ng6
{[%clk 0:04:09.2]} 21. Qc5 {[%clk 0:04:13.8]} 21... Qe7 {[%clk 0:03:48.2]} 22.
Qxe7 {[%clk 0:04:09.7]} 22... Nxe7 {[%clk 0:03:48.1]} 23. a4 {[%clk 0:04:08.7]}
23... f6 {[%clk 0:03:43.9]} 24. b5 {[%clk 0:04:07.5]} 24... axb5 {[%clk
0:03:42.1]} 25. axb5 {[%clk 0:04:06.8]} 25... cxb5 {[%clk 0:03:41.5]} 26. Rb1
{[%clk 0:04:00.3]} 26... Re6 {[%clk 0:03:33.9]} 27. Rxb5 {[%clk 0:03:58.5]}
27... Rc7 {[%clk 0:03:33.4]} 28. Rfb1 {[%clk 0:03:56.7]} 28... Nc8 {[%clk
0:03:21.7]} 29. Rxb7 {[%clk 0:03:53.9]} 29... Rxb7 {[%clk 0:03:21.6]} 30. Rxb7
{[%clk 0:03:52.4]} 30... Nd6 {[%clk 0:03:21.5]} 31. Rb6 {[%clk 0:03:50.8]} 31...
Kf7 {[%clk 0:03:19.9]} 32. Ne1 {[%clk 0:03:46.4]} 32... Ne4 {[%clk 0:03:17.2]}
33. Rb7+ {[%clk 0:03:44.7]} 33... Kg6 {[%clk 0:03:16.2]} 34. Nd3 {[%clk
0:03:41.2]} 34... Kh7 {[%clk 0:03:12.6]} 35. Nf4 {[%clk 0:03:38.9]} 35... Rd6
{[%clk 0:03:11.8]} 36. Nh5 {[%clk 0:03:36.7]} 36... Kg6 {[%clk 0:03:10.5]} 37.
g4 {[%clk 0:03:36]} 37... Kg5 {[%clk 0:03:07.7]} 38. Rxg7+ {[%clk 0:03:34.9]}
38... Kh4 {[%clk 0:03:07.3]} 39. Kh2 {[%clk 0:03:32.3]} 39... Nxf2 {[%clk
0:03:05.1]} 40. g3# {[%clk 0:03:31.2]} 1-0

[Event "Live Chess"]
[Site "Chess.com"]
[Date "2023.05.21"]
[Round "-"]
[White "domrobson"]
[Black "DoYouLikeCurry"]
[Result "1/2-1/2"]
[WhiteElo "1750"]
[BlackElo "1464"]
[TimeControl "300"]
[EndTime "7:20:50 PDT"]
[Termination "Game drawn by repetition"]

1. d4 {[%clk 0:04:58.9]} 1... d5 {[%clk 0:04:58.2]} 2. c4 {[%clk 0:04:58.5]}
2... e6 {[%clk 0:04:55]} 3. Nf3 {[%clk 0:04:57.9]} 3... Nf6 {[%clk 0:04:52.9]}
4. Nc3 {[%clk 0:04:57.6]} 4... Bb4 {[%clk 0:04:50.2]} 5. Bg5 {[%clk 0:04:57.1]}
5... Nbd7 {[%clk 0:04:46.3]} 6. e3 {[%clk 0:04:56.7]} 6... h6 {[%clk 0:04:44]}
7. Bxf6 {[%clk 0:04:54.7]} 7... Nxf6 {[%clk 0:04:43.9]} 8. Bd3 {[%clk
0:04:52.3]} 8... O-O {[%clk 0:04:36.3]} 9. O-O {[%clk 0:04:51.2]} 9... c6 {[%clk
0:04:34.5]} 10. Rc1 {[%clk 0:04:49]} 10... b6 {[%clk 0:04:32.6]} 11. Re1 {[%clk
0:04:48]} 11... Ba6 {[%clk 0:04:30.2]} 12. b3 {[%clk 0:04:47.4]} 12... Bd6
{[%clk 0:04:22.6]} 13. e4 {[%clk 0:04:43.5]} 13... Bc7 {[%clk 0:04:21.1]} 14. e5
{[%clk 0:04:42.3]} 14... Nd7 {[%clk 0:04:19]} 15. Ne2 {[%clk 0:04:36]} 15... c5
{[%clk 0:04:16.7]} 16. Bb1 {[%clk 0:04:33.1]} 16... cxd4 {[%clk 0:04:12.8]} 17.
Qxd4 {[%clk 0:04:31.5]} 17... Qb8 {[%clk 0:04:08.8]} 18. cxd5 {[%clk 0:04:24.7]}
18... Bxe5 {[%clk 0:04:05.3]} 19. Nxe5 {[%clk 0:04:20.3]} 19... Qxe5 {[%clk
0:04:02.1]} 20. Qxe5 {[%clk 0:04:18.7]} 20... Nxe5 {[%clk 0:04:00.6]} 21. dxe6
{[%clk 0:04:16.8]} 21... fxe6 {[%clk 0:03:53.3]} 22. Nd4 {[%clk 0:04:15.4]}
22... Nd3 {[%clk 0:03:48.5]} 23. Bxd3 {[%clk 0:04:13.3]} 23... Bxd3 {[%clk
0:03:47.9]} 24. Nxe6 {[%clk 0:04:08.8]} 24... Rfe8 {[%clk 0:03:45.8]} 25. Red1
{[%clk 0:04:00.1]} 25... Rxe6 {[%clk 0:03:41.2]} 26. Rxd3 {[%clk 0:03:58]} 26...
Rae8 {[%clk 0:03:40.8]} 27. Kf1 {[%clk 0:03:54]} 27... Re2 {[%clk 0:03:37]} 28.
a4 {[%clk 0:03:52.8]} 28... Rb2 {[%clk 0:03:32.4]} 29. g3 {[%clk 0:03:36.8]}
29... Ree2 {[%clk 0:03:30.4]} 30. Rf3 {[%clk 0:03:35.7]} 30... Kh7 {[%clk
0:03:24.2]} 31. h4 {[%clk 0:03:34.6]} 31... Kg6 {[%clk 0:03:21.5]} 32. Rc7
{[%clk 0:03:30.7]} 32... Red2 {[%clk 0:03:16.4]} 33. Rxa7 {[%clk 0:03:24.6]}
33... Rb1+ {[%clk 0:03:15.3]} 34. Kg2 {[%clk 0:03:23.4]} 34... Rdd1 {[%clk
0:03:14.1]} 35. Rff7 {[%clk 0:03:19.7]} 35... Rg1+ {[%clk 0:03:12.9]} 36. Kf3
{[%clk 0:03:09.9]} 36... Rxb3+ {[%clk 0:03:09.4]} 37. Ke2 {[%clk 0:03:06.4]}
37... Rb2+ {[%clk 0:03:04.6]} 38. Kd3 {[%clk 0:03:04.6]} 38... Rd1+ {[%clk
0:03:02.6]} 39. Kc3 {[%clk 0:03:03.4]} 39... Rbd2 {[%clk 0:02:41.9]} 40. Rxg7+
{[%clk 0:03:01]} 40... Kh5 {[%clk 0:02:41]} 41. Rgf7 {[%clk 0:02:45.4]} 41...
Rd3+ {[%clk 0:02:38.8]} 42. Kc4 {[%clk 0:02:39.2]} 42... Rd4+ {[%clk 0:02:34.3]}
43. Kb5 {[%clk 0:02:36.4]} 43... Rb1+ {[%clk 0:02:32.7]} 44. Kc6 {[%clk
0:02:34.1]} 44... Rc1+ {[%clk 0:02:29.4]} 45. Kxb6 {[%clk 0:02:27.1]} 45... Rb4+
{[%clk 0:02:27.3]} 46. Ka5 {[%clk 0:02:25.2]} 46... Rcc4 {[%clk 0:02:25.3]} 47.
f3 {[%clk 0:02:17.3]} 47... Rxa4+ {[%clk 0:02:23.8]} 48. Kb5 {[%clk 0:02:16.9]}
48... Rab4+ {[%clk 0:02:21]} 49. Ka5 {[%clk 0:02:15.3]} 49... Ra4+ {[%clk
0:02:20.3]} 50. Kb5 {[%clk 0:02:05.8]} 50... Rab4+ {[%clk 0:02:12.7]} 51. Ka5
{[%clk 0:02:02.3]} 51... Ra4+ {[%clk 0:02:06.4]} 1/2-1/2